Cogmind - Beta 11.2 @@@ ROGUE MODE // 2023.01.22 @ 21:29:57 Player: Chris Result: Destroyed by D-53 Grenadier with Mini Grenade Launcher Performance ------------- Evolutions (0) 0 Regions Visited (2) 400 Robots Destroyed (19) 95 Value Destroyed (347) 347 Prototype IDs (0) 0 Alien Tech Used (0) 0 Bonus (0) 0 TOTAL SCORE: 842 Bonus ------- None Cogmind --------- Core Integrity 0/250 Matter 300/300 Energy 249/250 System Corruption 2% Temperature Cool (0) Movement Rolling (115) Ox1 Location -10/Mines Parts ------- > --- POWER (1) -------- Ion Engine > --- PROPULSION (2) --- Compact Wheel > --- UTILITY (2) ------ Improved Heat Sink Small Storage Unit > --- WEAPON (2) ------- Beam Cannon Beam Cannon > --- INVENTORY (8) ---- Aluminum Leg Aluminum Leg Beam Cannon Datajack Peak State ------------ > --- POWER ------------ Light Ion Engine > --- PROPULSION ------- Wheel Compact Wheel > --- UTILITY ---------- Improved Heat Sink Small Storage Unit > --- WEAPON ----------- Medium Laser Medium Laser > --- INVENTORY -------- Ion Engine Aluminum Leg Aluminum Leg Small Laser Light Assault Rifle [Rating: 9] Favorites ----------- Power Ion Engine Engine Ion Engine Propulsion Compact Wheel Wheel Compact Wheel Utility Small Storage Unit Device Improved Heat Sink Storage Small Storage Unit Hackware Hacking Suite Weapon Beam Cannon Energy Gun Medium Laser Energy Cannon Beam Cannon Build | -11 -10 -10 ------- Run | Scr Mat Min Slots Evolved . | . . . Power . | . . . Propulsion . | . . . Utility . | . . . Weapon . | . . . Parts Attached 15 | 6 7 2 Power 2 | 1 1 . Engine 2 | 1 1 . Core . | . . . Reactor . | . . . Propulsion 3 | 2 1 . Treads . | . . . Leg . | . . . Wheel 3 | 2 1 . Hover . | . . . Flight . | . . . Utility 5 | 1 2 2 Device 3 | . 1 2 Storage 1 | 1 . . Processor . | . . . Hackware 1 | . 1 . Protection . | . . . Artifact . | . . . Weapon 5 | 2 3 . Energy Gun 3 | 2 1 . Energy Cannon 2 | . 2 . Ballistic Gun . | . . . Ballistic Cannon . | . . . Launcher . | . . . Special Weapon . | . . . Impact Weapon . | . . . Slashing Weapon . | . . . Piercing Weapon . | . . . Special Melee Weapon . | . . . Unidentified Prototypes . | . . . Parts Lost 2 | . 1 1 Power 1 | . 1 . Propulsion 1 | . . 1 Utility . | . . . Weapon . | . . . Highest Loss Streak 1 | . 1 1 To Critical Strikes . | . . . Average Slot Usage (%) 96 | . 95 99 Engine 12 | . 12 14 Wheel 27 | . 27 27 Device 9 | . 9 9 Storage 14 | . 14 14 Hackware 2 | . 2 4 Energy Gun 12 | . 17 . Energy Cannon 15 | . 10 28 Naked Turns . | . . . Heaviest Build 17 | 11 17 17 Greatest Support 26 | 26 26 26 Greatest Overweight (x) 1 | . 1 1 Average Overweight (x) . | . . . Largest Inventory Capacity 8 | 8 8 8 Average Capacity 7 | 7 8 8 Most Carried 8 | 4 8 5 Average Carried 5 | 1 5 4 Final Capacity 8 | 8 8 8 Final Carried 5 | 4 5 4 Class Distribution -------------------- 100% | Mutant Dominant Class ---------------- Mutant | -10/Materials Mutant | -10/Mines Resources | -11 -10 -10 ----------- Run | Scr Mat Min Matter Collected 345 | 163 162 20 Remotely . | . . . Salvage Created 589 | . 552 37 Parts 39 | . 34 5 Haulers Intercepted 1 | . 1 . Recyclers Shooed . | . . . Parts Field Recycled . | . . . Retrieved Matter . | . . . Parts Self-Destructed . | . . . Prevented . | . . . Kills | -11 -10 -10 ------- Run | Scr Mat Min Combat Hostiles Destroyed 9 | . 6 3 Guns 4 | . 4 . Cannons 5 | . 2 3 Classes Destroyed 9 | . 8 1 Worker 3 | . 3 . Builder 1 | . 1 . Hauler 1 | . 1 . Recycler 1 | . 1 . Mechanic 1 | . 1 . Operator 1 | . 1 . Watcher 2 | . 2 . Swarmer 3 | . . 3 Grunt 6 | . 6 . Best Kill Streak 5 | . 5 2 Combat Bots Only 2 | . 2 2 Max Kills in Single Turn 2 | . 2 1 Gunslinging . | . . . Exploded . | . . . Melee . | . . . Uniques/NPCs Destroyed . | . . . Combat | -11 -10 -10 -------- Run | Scr Mat Min Damage Taken 754 | . 294 460 Core 286 | . 90 196 Absorbed by Shields . | . . . Core Remaining (%) 100 | 100 . . Volleys Fired 49 | . 37 12 Largest 2 | . 2 2 Hottest 120 | . 120 120 Shots Fired 98 | . 74 24 Gun 58 | . 58 . Cannon 40 | . 16 24 Launcher . | . . . Special . | . . . Kinetic . | . . . Thermal 98 | . 74 24 Explosive . | . . . Electromagnetic . | . . . Robot Hit Streak 6 | . 6 3 Robot Miss Streak 4 | . 4 4 Penetration Max . | . . . Secondary Targets . | . . . Shots Hit Robots 53 | . 44 9 Core Hits 26 | . 23 3 Critical Kills . | . . . Critical Parts Destroyed . | . . . Critical Strikes 4 | . 4 . Burn 4 | . 4 . Melee Attacks . | . . . Impact . | . . . Slashing . | . . . Piercing . | . . . Sneak Attacks . | . . . Combat Hostiles . | . . . Follow-up Attacks . | . . . Damage Inflicted 833 | . 640 193 Guns 467 | . 467 . Cannons 366 | . 173 193 Explosions . | . . . Melee . | . . . Ramming . | . . . Kinetic . | . . . Thermal 833 | . 640 193 Explosive . | . . . Electromagnetic . | . . . Impact . | . . . Slashing . | . . . Piercing . | . . . Highest Corruption 2 | . . 2 Average Corruption 2 | . . 2 Corruption Purged . | . . . Corruption Blocked . | . . . Overload Shots . | . . . Overflow Damage . | . . . Projectiles . | . . . Explosions . | . . . Melee . | . . . Knockbacks . | . . . Impact . | . . . Kinetic . | . . . Secondary . | . . . Self-Inflicted Damage . | . . . Shots . | . . . Rammed . | . . . Targets Rammed . | . . . Kicked . | . . . Crushed . | . . . Highest Temperature 500 | . 240 500 Average Temperature 131 | . 50 238 Received Heat Transfer 168 | . 168 . Effects 2 | . . 2 Shutdowns 1 | . . 1 Energy Bleed 1 | . . 1 Siege Activations . | . . . Robots Corrupted . | . . . Combat Hostiles . | . . . Parts Fried . | . . . Impact Corruptions . | . . . Robots Melted . | . . . Combat Hostiles . | . . . Parts Melted 7 | . 6 1 Heat Transferred 2442 | . 2035 407 Parts Sabotaged . | . . . Parts Stolen . | . . . Parts Stripped . | . . . Power Chain Reactions . | . . . Missiles Intercepted . | . . . Alert | -11 -10 -10 ------- Run | Scr Mat Min Peak Influence 246 | . 246 110 Initial 25 | . . 25 Average 91 | . 105 86 Maximum Alert Level 1 | . 1 . Low Security (%) 89 | 100 83 100 Level 1 10 | . 16 . Level 2 . | . . . Level 3 . | . . . Level 4 . | . . . Level 5 . | . . . High Security . | . . . Max Security . | . . . Squads Dispatched 1 | . 1 . Investigation . | . . . Extermination . | . . . Reinforcement 1 | . 1 . Assault . | . . . Garrison . | . . . Intercept . | . . . Searches Triggered . | . . . Construction Impeded . | . . . Haulers Reinforced . | . . . Active Scanning Responses . | . . . Cargo Convoy Interrupts . | . . . Stealth | -11 -10 -10 --------- Run | Scr Mat Min Distress Signals . | . . . Communications Jammed . | . . . Distress Signals . | . . . Times Spotted 21 | . 11 10 Peak Tracking Total 6 | . 3 6 Tactical Retreats 1 | . 1 . Traps | -11 -10 -10 ------- Run | Scr Mat Min Traps Triggered 1 | . 1 . Indirectly . | . . . Trap Hack Attempts . | . . . Triggered . | . . . Disarmed . | . . . Reprogrammed . | . . . Reused . | . . . Traps Extracted . | . . . Installed . | . . . Triggered . | . . . Machines | -11 -10 -10 ---------- Run | Scr Mat Min Machines Disabled 1 | . 1 . Max in Single Turn 1 | . 1 . Machines Sabotaged . | . . . Garrisons Compromised . | . . . Overloaded Fab Kills . | . . . Hacking | -11 -10 -10 --------- Run | Scr Mat Min Machines Accessed 2 | . 2 . Terminals 2 | . 2 . Fabricators . | . . . Repair Stations . | . . . Recycling Units . | . . . Scanalyzers . | . . . Garrison Access . | . . . Total Hacks 6 | . 6 . Successful 3 | . 3 . Failed 3 | . 3 . Catastrophic . | . . . Database Lockouts . | . . . Manual 7 | . 7 . Terminals 6 | . 6 . Fabricators . | . . . Repair Stations . | . . . Recycling Units . | . . . Scanalyzers . | . . . Garrison Access . | . . . Terminal Hacks 3 | . 3 . Branch Access Points 1 | . 1 . Emergency Access Points 1 | . 1 . Zone Layout 1 | . 1 . Fabricator Hacks . | . . . Repair Station Hacks . | . . . Recycling Unit Hacks . | . . . Scanalyzer . | . . . Garrison Access Hacks . | . . . Unauthorized Hacks . | . . . Terminals . | . . . Fabricators . | . . . Repair Stations . | . . . Recycling Units . | . . . Scanalyzers . | . . . Garrison Access . | . . . Data Cores Recovered . | . . . Used . | . . . Hacking Detections 2 | . 2 . Full Trace Events 1 | . 1 . Feedback Events . | . . . Feedback Blocked . | . . . Robot Schematics Acquired . | . . . Robots Built . | . . . Authchips . | . . . Time . | . . . Total Robot Build Rating . | . . . Part Schematics Acquired . | . . . Parts Built . | . . . Authchips . | . . . Time . | . . . Total Part Build Rating . | . . . Parts Repaired . | . . . Time . | . . . Parts Recycled . | . . . Recycled Matter . | . . . Retrieved Matter . | . . . Retrieved Components . | . . . Parts Scanalyzed . | . . . Part Schematics Acquired . | . . . Parts Damaged . | . . . Bothacking | -11 -10 -10 ------------ Run | Scr Mat Min Used RIF Installer . | . . . Robots Hacked . | . . . Non-combat . | . . . Combat . | . . . Robot Hacks Applied . | . . . Relay Couplers Released . | . . . Fabnet Peak Effective % . | . . . Robots Rewired . | . . . Allies Hacked . | . . . Hacks Repelled . | . . . Allies | -11 -10 -10 -------- Run | Scr Mat Min Total Allies . | . . . Largest Group . | . . . Highest-Rated Group . | . . . Highest-Rated Ally . | . . . Total Orders . | . . . Ally Attacks . | . . . Total Damage . | . . . Kills . | . . . Allies Corrupted . | . . . Allies Melted . | . . . Intel | -11 -10 -10 ------- Run | Scr Mat Min Robot Analysis Total . | . . . Derelict Logs Recovered . | . . . Drone Launches . | . . . Drone Recoveries . | . . . Exploration | -11 -10 -10 ------------- Run | Scr Mat Min Turns Passed 729 | 64 469 196 Spaces Moved 581 | 57 371 153 Core 1 | 1 . . Treads . | . . . Legs . | . . . Wheels 580 | 56 371 153 Hover . | . . . Flight . | . . . Fastest Speed 50 | 50 90 90 Average Speed 90 | 89 90 90 Slowest Speed 115 | 100 95 115 Overloaded Moves . | . . . Propulsion Burnouts . | . . . Robots Hopped . | . . . Cave-ins Triggered . | . . . Exploration Rate (%) 32 | 4 59 35 Regions Visited 2 Branch Regions 1 Pre-discovered Areas . | . . . Known Exits Taken 1 | . 1 . Unknown Exits Taken 1 | 1 . . Scrap Searched . | . . . Spaces Dug . | . . . Terrain Destroyed . | . . . Melee . | . . . Projectile . | . . . AOE . | . . . Terrain Rammed . | . . . Walls Destroyed . | . . . Machines Disabled . | . . . Actions | -11 -10 -10 --------- Run | Scr Mat Min Total 686 | 66 432 188 Wait 26 | . 7 19 Move 579 | 56 370 153 Hop . | . . . Pick Up 8 | 4 4 . Fast Attach 11 | 6 5 . Attach 3 | . 1 2 Detach 4 | . 2 2 Swap 1 | . 1 . Drop 5 | . 5 . Fire 49 | . 37 12 Melee . | . . . Ram . | . . . Kick . | . . . Crush . | . . . Escape Stasis . | . . . Rewire . | . . . Trap . | . . . Miscellaneous . | . . . Route ------- -11/Scrapyard -10/Materials (discovered 3 exits: [*Mat] / *Min x2) -10/Mines (discovered 1 exit: [*Mat]) History --------- Turn | Location | Event 27 | -11/Scrapyard | Discovered new exit (range 15) 65 | -11/Scrapyard | Entered Materials 232 | -10/Materials | Discovered new exit (range 12) 329 | -10/Materials | Build established: Mutant 339 | -10/Materials | Discovered new exit (range 14) 436 | -10/Materials | Identified exit to Mines 534 | -10/Materials | Entered Mines 556 | -10/Mines | Core integrity fell below 50% 707 | -10/Mines | Discovered new exit (range 3) 717 | -10/Mines | Assembled infested the area 722 | -10/Mines | Assisted by a Guerilla fighting off Assembled 729 | -10/Mines | Core integrity fell below 20% 730 | -10/Mines | Destroyed by D-53 Grenadier with Mini Grenade Launcher Last Messages --------------- 00597_ Acquired 8 matter. 00707_ EXIT=FOUND 00717_ ALERT: Infestation in the mines, dispatching Demolisher response squad. 00722_ A derelict emerges from the shadows: "You need to get out of here! I've been tracking a group of Assembled to figure out where they're coming from, and they're closing on this area, come on!" 00722_ EL-M0B(h): "I'll hold them off! Go on ahead or try to find another way!" 00722_ HV Slug penetrates Wall. 00722_ C-30 ARC bursts open, deploying its payload. 00722_ D-53 Grenadier unfolds itself. 00722_ EL-M0B(h) destroyed. 00725_ Wheel destroyed. 00725_ System corrupted by crushing effect (+2). 00725_ Knocked back. 00726_ as-82077 destroyed. 00728_ as-24672 destroyed. 00730_ as-12282 destroyed. [Achievement: Back For More] Map ----- +----------------------------------------------------+ | ?????????????????????????????????????????????????? | | ?????????????????????????????????????????????????? | | ?????????????????????????????????????????????????? | | ?????????????????????????????????????????????????? | | ?????????????????????????????????????????????????? | | ?????????????????????????????????????????????????? | | ?????????????????????????????????????????????????? | | ??????????????????####???????????????????????????? | | ?????????????????? #???????????????????????????? | | ?????????????????? #???????????????????????????? | | ??????????????????# #???????????????????????????? | | ??????????????????# #???????????????????????????? | | ??????????????????# #???????????????????????????? | | ??????????????????# #???????????????????????????? | | ??????????????????# #???????????????????????????? | | ??????????????????# #???????????????????????????? | | ????????????####??# ##??????????????????????????? | | ???????????## #### #T#####?????????????????????? | | ??????????## # #?????????????????????? | | ????????### ### # #?????????????????????? | | ######## ##?# # #?????????????????????? | | ##??# # #?????????????????????? | | ##### # ##???# < ###???????????????????? | | ?????# ## #????# # ###?????????????????? | | ?????# ## #????# # #?????????????????? | | ??#### ### #???# ## @ #?????????????????? | | #?# #?## #??# ## ### #????????????? | | #?# ####??## #?# "% ]dd = aa #???????????? | | ??# #??????# #?# ## % ### #???????????? | | ??# #??????## ##?# ### #?????#???????????? | | ??# #????????###??# #?## #?????????????????? | | ### ###???????????# #??########?????????????????? | | ##??????????# #???????????????????????????? | | #?????????? ???????????????????????????? | | """ #????????? ???????????????????????????? | | """ #????????? ???????????????????????????? | | """ ##????????### ???????????????????????????? | | ###????????????# ???????????????????????????? | | ## ##??????????????? ???????????????????????????? | | #####??????????????? ???????????????????????????? | | #????####?????????? ??????????????????????????? | | ##??## ##????????? ??????????????????????????? | | #### #???????? ?????????????????????????? | | #??????? ??????????????????????????? | | ##????#? ????????????????????????????? | | ##???# ? ?????????????????????????????? | | #??? ? ??????????????????????????????? | | ##?? ????????????????????????????????? | | ### ##? ?????????????????????????????????? | | ###?### ## #?????????????????????????????????? | +----------------------------------------------------+ Best States ------------- Heat Dissipation 39 Energy Generation 10 Energy Capacity 250 Matter Stores 300 Matter Capacity 300 Sight Range 16 Terrain Scan Density 10 Evasion (%) 42 Offensive Hacking 10 Item Schematics ----------------- None Robot Schematics ------------------ None Fabricated ------------ Nothing Alien Tech Used ----------------- None Achievements -------------- Back For More Challenges ------------ None Game ------ Seed GreatAlloyAxe Manual? 0 Play Time 00:11:12 Cumulative 14.3 hours Start 2023.01.22 @ 21:20:17 End 2023.01.22 @ 21:29:57 Sessions 1 Manual Loads 0 Difficulty Rogue Special Mode None Game No. 50 Rogue 50 Adventurer 0 Explorer 0 Win Type - Total 0 Types 0/0/0/0/0/0/0/0/0 Lore% 12 Gallery% 17 Achievement% 15 Wizard Run 0 Options --------- ASCII 0 Keyboard 1 Movement Vi Keybinds 0 Fullscreen 1 Font 24/Smallcaps Map View 76x50 Tactical HUD 1 Map Filters NONE Filters NONE Steam 1 RUN: d3a12029-8190-4d58-8c11-c8ce069b3c53